[Event "79th LOTTO Polish-ch 2022"]
[Site "Kruszwica"]
[Date "2022.05.12"]
[Round "2.2"]
[White "Szpar, Milosz"]
[Black "Janik, Igor"]
[Result "1/2-1/2"]
[ECO "C47"]
[WhiteElo "2434"]
[BlackElo "2525"]
[Annotator "TA"]
[PlyCount "56"]
[EventDate "2022.05.10"]
[EventType "k.o."]
[EventCountry "POL"]
[SourceTitle "playchess.com"]
[Source "ChessBase"]
[SourceQuality "1"]
[TimeControl "40/5400+30:1800+30"]

{[%evp 16,56,0,0,0,0,10,0,0,0,0,0,0,0,0,0,0,0,12,13,17,4,14,0,0,0,0,0,0,0,0,0,0,0,0,0,0,0,0,0,0,0,0]} 1. e4 {[%emt 0:00:05]} e5 {[%emt 0:00:05]} 2. Nf3 {[%emt 0:00:53]} Nc6 {[%emt 0:00:41]} 3. Nc3 {[%emt 0:01:14]} Nf6 {[%emt 0:00:24]} 4. d4 {[%emt 0:00:07]} exd4 {[%emt 0:00:16]} 5. Nxd4 {[%emt 0:00:06]} Bb4 {[%emt 0:00:20]} 6. Nxc6 {[%emt 0:00:14]} bxc6 {[%emt 0:00:02]} 7. Bd3 {[%emt 0:00:11]} d5 {[%emt 0:00:19]} 8. Bd2 {[%emt 0:00:25]} O-O {[%emt 0:01:45]} 9. O-O {[%emt 0:01:18] The position is equal.} Rb8 {[%emt 0:07:11] C47: Scotch Four Knights and Four Knights with 4 g3.} 10. Re1 {[%emt 0:00:46]} Re8 {[%emt 0:10:22] 10...Bg4 is more fashionable.} 11. exd5 {[%emt 0:00:41]} Rxe1+ {[%emt 0:00:49]} 12. Qxe1 {[%emt 0:00:05]} cxd5 {[%emt 0:00:14]} 13. a3 {[%emt 0:00:12]} Bf8 {[%emt 0:01:29]} 14. b4 {[%emt 0:02:30]} c5 {[%emt 0:07:15]} 15. bxc5 {[%emt 0:01:53]} Bxc5 {[%emt 0:00:32]} 16. Be3 {[%emt 0:05:12]} Bb6 {[%emt 0:10:54]} 17. Bxb6 {[%emt 0:18:06]} Rxb6 {[%emt 0:03:06]} 18. Rb1 {[%emt 0:06:42]} Be6 {[%emt 0:03:51] [#]} 19. Rb4 $146 {[%emt 0:07:35]} ({Predecessor:} 19. Ne2 Ng4 20. Rxb6 Qxb6 21. h3 Ne5 22. Nf4 Nd7 23. Qc3 Qc5 24. Qxc5 Nxc5 25. Kf1 {½-½ (42) Michalik,P (2568)-Oparin,G (2681) Warsaw 2021}) 19... a5 {[%emt 0:04:58]} 20. Rb5 {[%emt 0:17:39]} Rxb5 {[%emt 0:05:17]} 21. Nxb5 {[%emt 0:00:12]} Bd7 {[%emt 0:04:39]} 22. Nd4 {[%emt 0:03:23]} Qb6 {[%emt 0:02:40]} 23. Qc3 {[%emt 0:07:38]} g6 {[%emt 0:11:27]} 24. h3 {[%emt 0:02:10]} Qb1+ {[%emt 0:00:58]} 25. Kh2 {[%emt 0:01:52]} Qb8+ {[%emt 0:01:03]} 26. Kg1 {[%emt 0:07:22]} Qb1+ {[%emt 0:00:17]} 27. Kh2 {[%emt 0:01:15]} Qb8+ 28. Kg1 Qb1+ {A balanced but interesting game.  Weighted Error Value: White=0.02 (flawless) /Black=0.01 (flawless)} 1/2-1/2

[Event "79th LOTTO Polish-ch 2022"]
[Site "Kruszwica"]
[Date "2022.05.12"]
[Round "2.3"]
[White "Piorun, Kacper"]
[Black "Teclaf, Pawel"]
[Result "1/2-1/2"]
[ECO "A30"]
[WhiteElo "2635"]
[BlackElo "2537"]
[Annotator "TA"]
[PlyCount "165"]
[EventDate "2022.05.10"]
[EventType "k.o."]
[EventCountry "POL"]
[SourceTitle "playchess.com"]
[Source "ChessBase"]
[SourceQuality "1"]
[TimeControl "40/5400+30:1800+30"]

{[%evp 21,165,29,27,30,32,12,18,11,17,10,49,42,42,47,39,12,11,12,13,0,0,0,0,-3,-4,0,0,-6,0,-13,0,-54,-59,-67,-52,-52,-67,-62,-63,-64,-38,-45,-38,-40,-38,-44,-44,-43,0,0,0,-79,-74,-89,-89,-89,-89,-89,-88,-89,-89,-89,-89,-89,-89,-89,-89,-92,-93,-95,-95,-111,-111,-155,-97,-118,-89,-89,-89,-89,-82,-82,-82,-82,-82,-82,-82,-82,-82,-82,-50,-50,-50,-50,0,0,0,0,0,0,0,0,0,0,0,0,0,0,0,0,0,-8,-8,-14,0,0,0,0,0,0,0,-34,0,0,0,0,0,0,0,0,0,0,0,0,0,0,0,0,0,0,0,0,0,0,0,0]} 1. c4 {[%emt 1:15:42]} c5 {[%emt 1:15:43]} 2. Nf3 {[%emt 0:00:33]} b6 {[%emt 0:00:34]} 3. g3 {[%emt 0:00:47]} Bb7 {[%emt 0:00:24]} 4. Bg2 {[%emt 0:00:22]} g6 {[%emt 0:01:19]} 5. d4 {[%emt 0:00:59]} cxd4 {[%emt 0:00:22]} 6. Qxd4 {[%emt 0:00:22]} Nf6 {[%emt 0:00:21]} 7. Nc3 {[%emt 0:00:35]} d6 {[%emt 0:00:44]} 8. O-O {[%emt 0:00:32]} Nbd7 {[%emt 0:00:39]} 9. b3 {[%emt 0:01:09]} Bg7 {[%emt 0:00:58]} 10. Bb2 {[%emt 0:00:24]} O-O {[%emt 0:00:32]} 11. Qd2 {[%emt 0:00:50]} Rc8 {[%emt 0:00:37]} 12. Rfd1 {[%emt 0:01:04] A30: Symmetrical English: Double Fianchetto and Hedgehog.} Rc5 {[%emt 0:00:40] [#]} 13. Nh4 $146 {[%emt 0:01:18][%cal Bf3h4,Bh4g2,Bg2e3][%mdl 32]} ({Predecessor:} 13. Ne1 Qa8 14. Bxb7 Qxb7 15. Nd3 Rcc8 16. Nf4 Rfe8 17. Nfd5 a6 18. Rac1 Rcd8 19. Nxf6+ Nxf6 {1-0 (34) Peng,L (2498)-Chigaev,M (2632) Warsaw 2021}) 13... Qa8 {[%emt 0:01:06]} 14. Bxb7 {[%emt 0:01:32]} Qxb7 {[%emt 0:00:22]} 15. Ng2 {[%emt 0:00:21]} ({Of course not} 15. Nd5 Nxd5 16. cxd5 (16. Bxg7 Kxg7 17. cxd5 Nf6 $17) 16... Bxb2 17. Qxb2 Nf6 $17) 15... Ne4 {[%emt 0:02:46]} 16. Nxe4 {[%emt 0:00:32]} Qxe4 {[%emt 0:00:22]} 17. Bxg7 {[%emt 0:01:37]} Kxg7 {[%emt 0:00:22]} 18. Ne3 {[%emt 0:00:36]} (18. Nf4 {is interesting.} Rd8 19. f3 Qb7 20. a4) 18... Nf6 {[%emt 0:00:30]} 19. f3 {[%emt 0:01:57]} Qe5 {[%emt 0:00:52]} 20. b4 {[%emt 0:01:25]} Rc6 {[%emt 0:01:27]} 21. Rab1 {[%emt 0:01:25]} h5 {[%emt 0:01:09]} 22. Qd4 {[%emt 0:00:38]} Qxd4 {[%emt 0:01:18]} 23. Rxd4 {[%emt 0:00:22]} Rfc8 {[%emt 0:00:28]} 24. Rd3 {[%emt 0:01:18]} Kf8 {[%emt 0:00:48]} 25. Ra3 {[%emt 0:00:21]} R6c7 {[%emt 0:00:29]} 26. Nd5 {[%emt 0:01:13]} (26. Kf2 $11) 26... Nxd5 $15 {[%emt 0:00:47]} 27. cxd5 {[%emt 0:00:23][%mdl 4096] Endgame KRR-KRR} Rc2 {[%emt 0:00:29]} 28. Kf2 {[%emt 0:00:37]} Rd2 {[%emt 0:00:29]} 29. Rxa7 {[%emt 0:00:30]} Rcc2 {[%emt 0:00:37]} 30. Re1 {[%emt 0:00:34]} Rxd5 {[%emt 0:01:00]} 31. a4 {[%emt 0:01:00]} Rd4 {[%emt 0:01:26]} 32. b5 {[%emt 0:01:22]} Rb4 {[%emt 0:01:30]} 33. Ra6 {[%emt 0:00:45]} Kg7 {[%emt 0:00:56]} 34. h4 {[%emt 0:02:12]} Kf6 {[%emt 0:00:35]} 35. Ra1 $1 {[%emt 0:01:37]} Rbb2 {[%emt 0:00:28]} 36. Re1 {[%emt 0:00:47] [#]} (36. Ke3 $1 $11 {remains equal.}) 36... Ra2 $1 $17 {[%emt 0:00:36]} 37. Rxb6 {[%emt 0:00:59]} Rxa4 {[%emt 0:00:21]} 38. Rb7 {[%emt 0:00:35]} Rb4 {[%emt 0:00:34]} 39. b6 {[%emt 0:00:26]} Rbb2 {[%emt 0:01:29]} 40. Rb8 {[%emt 0:00:35]} Rc6 {[%emt 0:01:54]} 41. Rd1 {[%emt 0:30:28]} Rcxb6 {[%emt 0:30:49]} 42. Ra8 {[%emt 0:00:25]} Rc2 {[%emt 0:00:47]} 43. Ra4 {[%emt 0:00:25]} e6 {[%emt 0:00:30]} 44. Rf4+ {[%emt 0:00:39]} Kg7 {[%emt 0:00:32]} 45. Re4 {[%emt 0:00:21]} d5 {[%emt 0:00:23]} 46. Re3 {[%emt 0:00:21]} Kf6 {[%emt 0:00:38]} 47. Ra1 {[%emt 0:00:34] [#]} Rbb2 {[%emt 0:00:45]} (47... d4 $142 $1 {[%cal Rd4e3]} 48. Re4 d3) 48. Rd1 {[%emt 0:00:22]} Rd2 {[%emt 0:00:43]} 49. Rxd2 {[%emt 0:00:24]} Rxd2 {[%emt 0:00:21] KR-KR} 50. Ra3 {[%emt 0:00:22]} Kf5 {[%emt 0:00:41]} 51. Ra7 {[%emt 0:00:48]} f6 {[%emt 0:00:28]} 52. Ra5 {[%emt 0:00:35]} Rb2 {[%emt 0:00:47]} 53. Kf1 {[%emt 0:00:25]} Ke5 {[%emt 0:00:49]} 54. Kf2 {[%emt 0:00:21]} Rb7 {[%emt 0:00:45]} 55. Kf1 {[%emt 0:00:23]} g5 {[%emt 0:00:33]} 56. hxg5 {[%emt 0:01:05]} fxg5 {[%emt 0:00:21]} 57. Ra8 {[%emt 0:00:21]} h4 {[%emt 0:00:43]} (57... Rh7 $15) 58. gxh4 $1 $11 {[%emt 0:00:27]} gxh4 {[%emt 0:00:22]} 59. Rh8 {[%emt 0:00:23] Against Rh7} Rb4 {[%emt 0:00:38]} ({Don't play} 59... Rb1+ $6 60. Kg2 $17) 60. Kf2 {[%emt 0:00:22]} Rc4 {[%emt 0:00:22]} 61. Ke3 {[%emt 0:00:50]} Kf5 {[%emt 0:00:32]} 62. Kf2 {[%emt 0:00:29]} Ra4 {[%emt 0:00:27]} 63. Ke3 {[%emt 0:00:38]} Kg5 {[%emt 0:00:36]} 64. Rg8+ {[%emt 0:00:21]} Kf6 {[%emt 0:00:23]} 65. Rh8 {[%emt 0:00:24]} Kg7 {[%emt 0:00:24]} 66. Rh5 {[%emt 0:00:24]} Kg6 {[%emt 0:00:25]} 67. Rh8 {[%emt 0:00:22]} e5 {[%emt 0:00:54]} 68. Kf2 {[%emt 0:00:32]} Rf4 {[%emt 0:00:36]} 69. Re8 {[%emt 0:00:46]} Kf6 {[%emt 0:00:28]} 70. Rh8 {[%emt 0:00:40]} Kg6 {[%emt 0:00:23]} 71. Kg2 {[%emt 0:00:29]} d4 {[%emt 0:00:37]} 72. Kh3 {[%emt 0:00:26] The position is equal.} e4 {[%emt 0:00:32]} 73. fxe4 {[%emt 0:00:30]} Rxe4 {[%emt 0:00:30] aiming for ...Kg5.} 74. Rxh4 {[%emt 0:00:22]} Re3+ {[%emt 0:00:22]} 75. Kg2 {[%emt 0:00:23]} Rxe2+ {[%emt 0:00:21]} 76. Kf3 {[%emt 0:00:26]} Rd2 {[%emt 0:00:25]} 77. Ke4 {[%emt 0:00:28]} Kg5 {[%emt 0:00:28]} 78. Rh8 {[%emt 0:00:23]} Rd1 {[%emt 0:00:30]} 79. Rd8 {[%emt 0:00:23]} Re1+ {[%emt 0:00:25]} 80. Kd3 {[%emt 0:00:21]} Rd1+ {[%emt 0:00:22]} 81. Ke4 {[%emt 0:00:21]} Re1+ {[%emt 0:00:21]} 82. Kd3 {[%emt 0:00:22]} Rd1+ {[%emt 0:00:21]} 83. Ke4 {Weighted Error Value: White=0.08 (flawless) /Black=0.06 (flawless)} 1/2-1/2

[Event "79th LOTTO Polish-ch 2022"]
[Site "Kruszwica"]
[Date "2022.05.12"]
[Round "2.3"]
[White "Tomczak, Jacek"]
[Black "Socko, Bartosz"]
[Result "1-0"]
[ECO "B11"]
[WhiteElo "2584"]
[BlackElo "2636"]
[Annotator "TA"]
[PlyCount "93"]
[EventDate "2022.05.10"]
[EventType "k.o."]
[EventCountry "POL"]
[SourceTitle "playchess.com"]
[Source "ChessBase"]
[SourceQuality "1"]
[TimeControl "40/5400+30:1800+30"]

{[%evp 10,93,28,8,13,21,28,0,0,0,2,0,0,2,18,28,27,24,30,27,39,1,39,20,54,45,62,61,68,62,158,154,154,107,105,111,235,230,228,210,265,269,263,264,321,300,362,322,548,534,537,527,476,258,535,525,591,344,387,269,508,494,647,424,422,418,398,391,866,899,912,887,844,718,690,680,2014,1928,5718,1738,2397,2364,29984,29983,29992,29993]} 1. e4 {[%emt 1:15:42]} c6 {[%emt 1:15:41]} 2. Nc3 {[%emt 0:00:23]} d5 {[%emt 0:00:22]} 3. Nf3 {[%emt 0:00:22]} Bg4 {[%emt 0:00:22]} 4. h3 {[%emt 0:00:23]} Bxf3 {[%emt 0:00:22]} 5. Qxf3 {[%emt 0:00:23]} e6 {[%emt 0:00:22]} 6. Be2 {[%emt 0:00:22][%cal Bf1e2,Be2d1,Bd1c2][%mdl 32]} Bc5 {[%emt 0:00:23] B11: Caro-Kann: Two Knights Variation.} 7. O-O {[%emt 0:00:24]} Nd7 {[%emt 0:00:27]} 8. Qg3 {[%emt 0:00:26]} Bd4 {[%emt 0:00:35] The position is equal.} (8... Ngf6 {feels hotter.} 9. d3 O-O 10. Bf4 Ne8) 9. exd5 {[%emt 0:00:35]} exd5 {[%emt 0:01:09]} 10. Bd1 {[%emt 0:00:21]} Ne7 {[%emt 0:00:35]} 11. Ne2 {[%emt 0:00:23] [#]} Bf6 $146 {[%emt 0:01:04]} (11... Be5 $5 {[%cal Re5g3]} 12. Qf3 O-O $11) ({Predecessor:} 11... Be5 12. Qf3 O-O 13. d4 Bd6 14. c3 Ng6 15. Bc2 Qf6 16. Qxf6 Nxf6 17. g3 Rfe8 {1-0 (61) McShane,L (2655)-Ghasi,A (2485) London 2021}) 12. d4 {[%emt 0:00:28]} O-O {[%emt 0:00:38]} 13. c3 {[%emt 0:00:22]} Re8 {[%emt 0:01:04]} 14. Bc2 {[%emt 0:00:35]} Ng6 {[%emt 0:00:36]} 15. Qd3 {[%emt 0:01:19]} Qc7 {[%emt 0:02:47]} 16. g3 {[%emt 0:00:48]} Ndf8 {[%emt 0:00:33]} 17. h4 {[%emt 0:00:33][%cal Bh3h4,Bh4h5,Bh5h6][%mdl 32]} Qd7 {[%emt 0:00:43][%cal Of6h4]} 18. h5 {[%emt 0:00:40]} Ne7 {[%emt 0:00:22]} 19. Qf3 {[%emt 0:00:40]} Nc8 {[%emt 0:00:57] [#]} (19... Qd6 $14) 20. h6 $1 $16 {[%emt 0:01:45]} Ng6 {[%emt 0:00:34]} 21. Nf4 {[%emt 0:01:59]} (21. Kg2 $142) 21... Nxf4 {[%emt 0:00:52]} 22. Qxf4 {[%emt 0:03:32]} (22. Bxf4 g6 $14) 22... Ne7 {[%emt 0:00:48] This costs Black the game.} (22... Qd6 $16 {keeps fighting.}) 23. hxg7 $18 {[%emt 0:00:31]} Bxg7 {[%emt 0:00:22]} 24. Kg2 {[%emt 0:00:24] Against Qh3+} Ng6 {[%emt 0:00:23]} 25. Qf3 {[%emt 0:00:29]} c5 {[%emt 0:03:07]} 26. Rh1 {[%emt 0:01:40]} (26. dxc5 $6 d4 27. cxd4 Qxd4 $18) 26... cxd4 {[%emt 0:00:26]} 27. Qh5 {[%emt 0:00:22]} Kf8 {[%emt 0:02:28]} 28. Bh6 {[%emt 0:01:35] [#] Hoping for Bxg7+.} (28. Qxh7 Qd6 29. Bh6 Qf6 30. cxd4 Bxh6 $18) 28... Bxh6 {[%emt 0:01:29]} (28... Qd6 {was called for.} 29. Bxg7+ Kxg7 30. Qxh7+ Kf6) 29. Qxh6+ {[%emt 0:00:22]} Ke7 {[%emt 0:00:22]} 30. Qg5+ {[%emt 0:01:18]} Kd6 {[%emt 0:00:21]} 31. Rxh7 {[%emt 0:00:45]} (31. cxd4 $142 Qe7 32. Qd2) 31... d3 $2 {[%emt 0:02:45]} (31... Qe7 32. Qg4 (32. Qf5 Qe6 $18) 32... Qe2) 32. Bxd3 {[%emt 0:00:43]} ({Not} 32. Bb3 Kc7 $18) 32... Ne5 {[%emt 0:00:21]} 33. Rd1 {[%emt 0:00:55]} Kc7 {[%emt 0:02:53]} 34. Be4 {[%emt 0:00:35]} Rad8 $2 {[%emt 0:00:27]} (34... Qe7 {might work better.} 35. Qxe7+ Rxe7) 35. Rxd5 {[%emt 0:00:33]} Qe6 {[%emt 0:00:21]} 36. Rxd8 {[%emt 0:02:18]} Rxd8 {[%emt 0:00:22]} 37. Rh6 {[%emt 0:00:30]} Qe8 {[%emt 0:00:47]} 38. Rh5 {[%emt 0:00:40]} Nc6 {[%emt 0:00:38]} (38... Ng6 39. Bd5 Rd7) 39. Qf4+ {[%emt 0:00:28]} Kb6 {[%emt 0:00:28]} 40. b4 {[%emt 0:00:32]} a6 {[%emt 0:00:27]} 41. Qe3+ {[%emt 0:30:28]} Kc7 {[%emt 0:30:22]} 42. a4 {[%emt 0:00:24] aiming for b5.} Kb8 {[%emt 0:00:33]} 43. b5 {[%emt 0:00:27]} axb5 {[%emt 0:00:23]} 44. axb5 {[%emt 0:00:24]} (44. Qf4+ $142 Ka7 45. axb5) 44... Na5 {[%emt 0:01:10]} 45. Qf4+ {[%emt 0:00:41]} Ka8 {[%emt 0:00:21]} 46. Bf3 {[%emt 0:00:26]} Qe1 {[%emt 0:00:45]} 47. Qc7 {[%emt 0:00:37] Weighted Error Value: White=0.30/Black=0.54} 1-0

[Event "79th LOTTO Polish-ch 2022"]
[Site "Kruszwica"]
[Date "2022.05.12"]
[Round "2.3"]
[White "Warakomski, Tomasz"]
[Black "Gumularz, Szymon"]
[Result "0-1"]
[ECO "A15"]
[WhiteElo "2534"]
[BlackElo "2513"]
[Annotator "TA"]
[PlyCount "60"]
[EventDate "2022.05.10"]
[EventType "k.o."]
[EventCountry "POL"]
[SourceTitle "playchess.com"]
[Source "ChessBase"]
[SourceQuality "1"]
[TimeControl "40/5400+30:1800+30"]

{[%evp 23,60,-39,0,-16,-12,-15,-9,-35,-34,-84,-78,-95,-66,-79,-76,-78,-62,-70,-62,-247,-73,-327,-321,-303,-297,-377,-370,-368,-360,-356,-364,-351,-314,-327,-319,-383,-370,-553,-560]} 1. c4 {[%emt 1:15:41]} Nf6 {[%emt 1:15:47]} 2. g3 {[%emt 0:00:21]} c6 {[%emt 0:00:29]} 3. b3 {[%emt 0:01:11]} d5 {[%emt 0:00:23]} 4. Bb2 {[%emt 0:00:21]} Bf5 {[%emt 0:01:07]} 5. Nf3 {[%emt 0:00:32]} e6 {[%emt 0:00:21]} 6. Bg2 {[%emt 0:00:58]} Be7 {[%emt 0:00:22]} 7. O-O {[%emt 0:00:22]} O-O {[%emt 0:00:22]} 8. d3 {[%emt 0:00:39]} h6 {[%emt 0:00:24]} 9. Nbd2 {[%emt 0:00:28]} Nbd7 {[%emt 0:00:22]} 10. a3 {[%emt 0:01:46]} a5 {[%emt 0:00:21]} 11. Rc1 {[%emt 0:00:22]} Bh7 {[%emt 0:00:27]} 12. Rc2 {[%emt 0:00:23]} Bd6 {[%emt 0:01:13]} 13. Qa1 {[%emt 0:00:40] A12: English Opening: 1...c6 with b3 by White.} Qe7 {[%emt 0:00:24]} 14. Re1 {[%emt 0:01:22]} Rfe8 {[%emt 0:01:12]} 15. e4 {[%emt 0:00:54] The position is equal.} dxe4 {[%emt 0:00:29] [#]} 16. dxe4 $146 {[%emt 0:00:21]} (16. Nxe4 $15 Nxe4 17. dxe4) ({Predecessor:} 16. Nxe4 Nxe4 17. dxe4 e5 18. Rce2 Nc5 19. Qd1 Red8 20. Qc2 Ne6 21. Qc1 f6 22. Rd1 {½-½ (46) Dornieden,M (2117)-Klundt,K (2328) Gladenbach 2011}) 16... e5 $17 {[%emt 0:00:24]} 17. Nh4 {[%emt 0:00:35]} Qe6 {[%emt 0:00:37]} (17... Nc5 {is interesting.} 18. Re3 Ng4 19. Rec3 Bc7) 18. h3 {[%emt 0:01:24]} Nc5 {[%emt 0:00:53]} 19. Rc3 {[%emt 0:01:36]} Bf8 {[%emt 0:00:30] Black is more active.} 20. Qb1 {[%emt 0:00:36]} Rad8 {[%emt 0:00:24]} 21. Nf1 {[%emt 0:00:21] [#]} (21. Nhf3 $15) 21... Nfxe4 $2 {[%emt 0:05:12]} (21... g5 $1 $19 {[%cal Rg5h4] and Black stays clearly on top.} 22. Nf5 {[#]} Nfxe4 $1 {[%mdl 512]} 23. Bxe4 Nxe4 24. Qxe4 Bxf5) 22. Rxe4 {[%emt 0:00:56][%mdl 8192]} (22. Bxe4 $17 Nxe4 23. Rxe4) 22... g5 $19 {[%emt 0:00:31]} ({Stronger than} 22... Bxe4 23. Bxe4 Nxe4 24. Qxe4 $11) 23. Rce3 {[%emt 0:02:43]} gxh4 {[%emt 0:00:36]} (23... Nxe4 $2 {perishes.} 24. Bxe4 Bxe4 25. Rxe4 gxh4 26. Rxh4 $19) 24. Rg4+ {[%emt 0:00:21] [#]} Qxg4 $1 {[%emt 0:00:32][%mdl 512]} 25. Qxh7+ {[%emt 0:00:21]} Kxh7 {[%emt 0:00:21]} 26. hxg4 {[%emt 0:00:22]} hxg3 {[%emt 0:00:51]} 27. Nxg3 {[%emt 0:00:22]} Kg8 {[%emt 0:00:44]} 28. Nh5 {[%emt 0:01:22]} Rd1+ {[%emt 0:00:44]} 29. Kh2 {[%emt 0:00:23] Hoping for Nf6+.} Re6 {[%emt 0:00:24] Against Nf6+} 30. Bxe5 {[%emt 0:00:42] [#]} (30. b4 $142 axb4 31. axb4) 30... Rxe5 $1 {[%emt 0:00:29][%mdl 512] Black took control after the opening.  Weighted Error Value: White=0.71/Black=0.26 (precise)} 0-1

[Event "79th LOTTO Polish-ch 2022"]
[Site "Kruszwica"]
[Date "2022.05.12"]
[Round "2.3"]
[White "Nasuta, Grzegorz"]
[Black "Kosakowski, Jakub"]
[Result "1/2-1/2"]
[ECO "C50"]
[WhiteElo "2511"]
[BlackElo "2435"]
[Annotator "TA"]
[PlyCount "101"]
[EventDate "2022.05.10"]
[EventType "k.o."]
[EventCountry "POL"]
[SourceTitle "playchess.com"]
[Source "ChessBase"]
[SourceQuality "1"]
[TimeControl "40/5400+30:1800+30"]

{[%evp 10,101,8,8,32,9,18,7,12,6,20,5,29,13,5,0,32,12,15,4,27,0,6,14,36,45,31,29,79,38,49,57,41,10,13,25,25,14,18,9,7,-16,-14,-42,-31,-79,-83,-108,0,27,20,27,10,33,27,19,37,23,27,16,7,24,65,14,185,186,219,214,221,211,202,198,180,147,261,231,224,204,353,0,0,0,0,0,0,0,0,0,0,0,0,0,0,0]} 1. e4 {[%emt 1:15:42]} e5 {[%emt 1:15:42]} 2. Nf3 {[%emt 0:00:21]} Nc6 {[%emt 0:00:22]} 3. Bc4 {[%emt 0:00:21]} Bc5 {[%emt 0:00:22]} 4. O-O {[%emt 0:00:23]} Nf6 {[%emt 0:00:23]} 5. d3 {[%emt 0:00:22]} d6 {[%emt 0:00:22]} 6. c3 {[%emt 0:00:21]} a5 $1 {[%emt 0:00:22][%mdl 4] 6...a5 is setting a new trend. C54: Giuoco Piano: 4 c3 Nf6, main lines with 5 d4 and 5 d3.} 7. Re1 {[%emt 0:00:26]} O-O {[%emt 0:00:24]} 8. h3 {[%emt 0:00:22]} h6 {[%emt 0:00:22]} 9. Nbd2 {[%emt 0:00:24]} Be6 {[%emt 0:00:27]} 10. Bb5 {[%emt 0:00:21]} Nd7 {[%emt 0:00:22]} 11. Ba4 {[%emt 0:00:26] [#]} Ba7 $146 {[%emt 0:04:26]} ({Predecessor:} 11... Re8 12. Nf1 d5 13. exd5 Bxd5 14. Ne3 Bxe3 15. Bxe3 f5 16. Bb3 Nf6 17. d4 e4 {0-1 (44) Antipov,M (2615)-Niemann,H (2642) Saint Louis 2022}) 12. Nf1 {[%emt 0:01:48]} Nc5 {[%emt 0:02:15]} 13. Bxc6 {[%emt 0:01:58]} bxc6 {[%emt 0:00:22]} 14. d4 {[%emt 0:00:21]} exd4 {[%emt 0:01:37]} 15. Nxd4 {[%emt 0:01:45]} Bd7 {[%emt 0:00:24]} 16. Ng3 {[%emt 0:00:26]} Re8 {[%emt 0:00:26]} 17. Qf3 {[%emt 0:02:02]} Rb8 {[%emt 0:04:02]} 18. Re2 {[%emt 0:02:45]} Qe7 {[%emt 0:01:09]} (18... a4 $11 {keeps the balance.}) 19. b3 {[%emt 0:02:31]} Qf8 {[%emt 0:00:53]} 20. Nh5 {[%emt 0:01:47]} f6 {[%emt 0:00:56]} 21. Bd2 {[%emt 0:01:32]} Qf7 {[%emt 0:00:30][%cal Oc5e4]} 22. Rae1 {[%emt 0:00:21]} Re5 {[%emt 0:01:00]} 23. Ng3 {[%emt 0:00:39]} Ne6 {[%emt 0:01:58]} 24. Qd3 {[%emt 0:01:17]} a4 {[%emt 0:00:44]} 25. Nf3 {[%emt 0:01:00]} Reb5 {[%emt 0:01:00] Threatening ...Nc5.} 26. b4 {[%emt 0:00:49] Inhibits Nc5.} c5 {[%emt 0:00:49][%cal Rc5b4]} 27. Nf5 {[%emt 0:02:39]} (27. a3 $15) 27... cxb4 {[%emt 0:00:33]} (27... R5b7 {keeps more tension.} 28. Qc2 cxb4 29. cxb4 Bb5) 28. cxb4 {[%emt 0:00:21] [#]} Rxb4 {[%emt 0:00:42]} ({Black should try} 28... R5b7 $1 $17 29. a3 Bb5) 29. Bxb4 $11 {[%emt 0:00:24]} Rxb4 {[%emt 0:00:21]} 30. Qc3 $36 {[%emt 0:00:30][%mdl 2048] White is pushing.} Bc5 {[%emt 0:00:24]} 31. Rb2 {[%emt 0:00:27]} Rxb2 {[%emt 0:00:55]} 32. Qxb2 {[%emt 0:00:21]} Nf4 {[%emt 0:00:38]} 33. Qd2 {[%emt 0:00:46] Inhibits Nd3.} Ng6 {[%emt 0:00:46]} 34. Ne3 {[%emt 0:00:21]} Be6 {[%emt 0:00:32]} 35. Nd5 {[%emt 0:00:34]} c6 {[%emt 0:00:24]} 36. Nc3 {[%emt 0:00:21] White is more active.} (36. Nb4 $14) 36... a3 $2 {[%emt 0:00:37] [#]} (36... Qa7 $1 $11 {and Black is okay.}) 37. Na4 $1 $18 {[%emt 0:00:21]} Bxa2 {[%emt 0:01:17]} 38. Nxc5 {[%emt 0:00:22]} ({But not} 38. Ra1 $6 Be6) 38... dxc5 {[%emt 0:00:20]} 39. Ra1 {[%emt 0:00:20]} Be6 {[%emt 0:00:32]} 40. Rxa3 {[%emt 0:00:21]} Qc7 {[%emt 0:00:27]} 41. Rc3 {[%emt 0:31:13]} Qb6 {[%emt 0:30:30]} (41... c4 $16 42. Nd4 Bf7) 42. Qd6 {[%emt 0:00:42][%csl LRc5,LRe6]} Bf7 {[%emt 0:00:34]} 43. e5 {[%emt 0:01:00]} Nf4 {[%emt 0:00:32]} (43... fxe5 $142 44. Nxe5 (44. Rxc5 Qb1+ 45. Kh2 Bd5 $16) 44... Nxe5) 44. Qxc5 $2 {[%emt 0:00:30]} ({Worse is} 44. Rxc5 Qb1+ 45. Kh2 Qf1 $11) (44. Kh2 $18) 44... Qb1+ $11 {[%emt 0:00:29] The position is equal.} 45. Kh2 {[%emt 0:00:21]} Qf1 {[%emt 0:00:23][%csl Gf4][%cal Rf1g2]} 46. Nh4 {[%emt 0:00:27] aiming for Ra3.} Ne2 {[%emt 0:00:23][%csl Ge2][%cal Rf1g1]} 47. f3 {[%emt 0:00:49]} Qe1 {[%emt 0:00:44]} 48. Rc2 {[%emt 0:00:21]} Qg3+ {[%emt 0:00:24]} 49. Kh1 {[%emt 0:00:21]} Qe1+ {[%emt 0:00:34]} 50. Kh2 {[%emt 0:00:20] Black must now prevent Nf5.} Qg3+ {[%emt 0:00:22]} 51. Kh1 {[%emt 0:00:23] Black escapes into a draw.  Weighted Error Value: White=0.17 (very precise) /Black=0.24 (precise)} 1/2-1/2